[Event "Early-Titled-Tuesday-Blitz-December-26-2023"]
[Site "Chess.com"]
[Date "2023.12.26"]
[Round "10"]
[White "Azalea95"]
[Black "Keaton87"]
[Result "1-0"]
[WhiteElo "2350"]
[BlackElo "2636"]
[TimeControl "180+1"]
[EndTime "9:57:27 PST"]
[Termination "Azalea95 won by resignation"]

1. e4 {[%clk 0:02:49.3]} 1... d6 {[%clk 0:03:00.9]} 2. d4 {[%clk 0:02:49.2]}
2... f6 {[%clk 0:03:01.8]} 3. Nc3 {[%clk 0:02:49]} 3... Kf7 {[%clk 0:03:02.3]}
4. Nf3 {[%clk 0:02:49.1]} 4... Ke6 {[%clk 0:03:02.8]} 5. Bc4+ {[%clk 0:02:43.7]}
5... Kd7 {[%clk 0:03:03.2]} 6. O-O {[%clk 0:02:43.8]} 6... Ke8 {[%clk
0:03:00.6]} 7. Re1 {[%clk 0:02:43.2]} 7... e6 {[%clk 0:02:59.1]} 8. a4 {[%clk
0:02:42.9]} 8... c6 {[%clk 0:02:57.9]} 9. d5 {[%clk 0:02:30]} 9... e5 {[%clk
0:02:55.7]} 10. dxc6 {[%clk 0:02:29.7]} 10... bxc6 {[%clk 0:02:54]} 11. Be3
{[%clk 0:02:29]} 11... Qe7 {[%clk 0:02:40.6]} 12. Qe2 {[%clk 0:02:28.5]} 12...
Be6 {[%clk 0:02:38.9]} 13. Red1 {[%clk 0:02:28.2]} 13... Qf7 {[%clk 0:02:33.9]}
14. Bxe6 {[%clk 0:02:24.6]} 14... Qxe6 {[%clk 0:02:34.8]} 15. Nd2 {[%clk
0:02:23.9]} 15... Ne7 {[%clk 0:02:29.7]} 16. Nc4 {[%clk 0:02:17.9]} 16... Nc8
{[%clk 0:02:29.5]} 17. Rd2 {[%clk 0:02:04.3]} 17... Be7 {[%clk 0:02:27.6]} 18.
b3 {[%clk 0:02:01]} 18... Kf7 {[%clk 0:02:23.6]} 19. Rad1 {[%clk 0:01:59.7]}
19... Re8 {[%clk 0:02:10.8]} 20. Qh5+ {[%clk 0:01:56]} 20... Kf8 {[%clk
0:02:08.5]} 21. Qxh7 {[%clk 0:01:56.3]} 21... Nd7 {[%clk 0:02:04]} 22. Ne2
{[%clk 0:01:49.6]} 22... Ndb6 {[%clk 0:02:02.6]} 23. Nxb6 {[%clk 0:01:47.8]}
23... axb6 {[%clk 0:02:02.6]} 24. Ng3 {[%clk 0:01:47.6]} 24... Qg8 {[%clk
0:01:53.4]} 25. Qg6 {[%clk 0:01:44.2]} 25... Qf7 {[%clk 0:01:52.9]} 26. Qh7
{[%clk 0:01:44.2]} 26... Qg8 {[%clk 0:01:53]} 27. Qh3 {[%clk 0:01:43]} 27... Kf7
{[%clk 0:01:39]} 28. Nf5 {[%clk 0:01:42.9]} 28... Qh8 {[%clk 0:01:39]} 29. Qg4
{[%clk 0:01:40.3]} 29... g6 {[%clk 0:01:32.2]} 30. Nh6+ {[%clk 0:01:20.3]} 30...
Kg7 {[%clk 0:01:32.3]} 31. Qe6 {[%clk 0:01:19.5]} 31... Qf8 {[%clk 0:01:23.3]}
32. Rd3 {[%clk 0:01:12.1]} 32... Bd8 {[%clk 0:01:00.4]} 33. Qd7+ {[%clk
0:01:02.7]} 33... Re7 {[%clk 0:00:58.8]} 34. Qg4 {[%clk 0:01:01.7]} 34... Kh7
{[%clk 0:00:56.5]} 35. Bc1 {[%clk 0:01:01.6]} 35... Kh8 {[%clk 0:00:27.8]} 36.
Qxg6 {[%clk 0:00:54.2]} 36... Rg7 {[%clk 0:00:23.1]} 37. Qh5 {[%clk 0:00:51.5]}
37... Rh7 {[%clk 0:00:22.9]} 38. Rh3 {[%clk 0:00:51]} 38... Raa7 {[%clk
0:00:22]} 39. Qf5 {[%clk 0:00:43.1]} 39... Ne7 {[%clk 0:00:19.1]} 40. Qg4 {[%clk
0:00:35.6]} 40... Ng8 {[%clk 0:00:15.5]} 41. Nxg8 {[%clk 0:00:32.2]} 41... Qxg8
{[%clk 0:00:16.1]} 42. Qxg8+ {[%clk 0:00:29.9]} 42... Kxg8 {[%clk 0:00:15.9]}
43. Rxd6 {[%clk 0:00:26]} 43... Be7 {[%clk 0:00:13.4]} 44. Rxh7 {[%clk
0:00:24.2]} 44... Kxh7 {[%clk 0:00:13.7]} 45. Rd3 {[%clk 0:00:22.5]} 45... b5
{[%clk 0:00:10.7]} 46. Be3 {[%clk 0:00:20.4]} 46... c5 {[%clk 0:00:06.9]} 47. g3
{[%clk 0:00:18.7]} 47... bxa4 {[%clk 0:00:04.5]} 48. bxa4 {[%clk 0:00:19.6]}
48... Kg6 {[%clk 0:00:05]} 49. Rd5 {[%clk 0:00:19.1]} 49... Rxa4 {[%clk
0:00:04.2]} 50. Bxc5 {[%clk 0:00:15]} 50... Bxc5 {[%clk 0:00:05]} 51. Rxc5
{[%clk 0:00:15.9]} 51... Rxe4 {[%clk 0:00:05.6]} 52. Rc8 {[%clk 0:00:15.3]}
52... Re1+ {[%clk 0:00:05.6]} 53. Kg2 {[%clk 0:00:15.8]} 53... Kf5 {[%clk
0:00:05.1]} 54. c4 {[%clk 0:00:15.3]} 54... Rc1 {[%clk 0:00:05.1]} 55. c5 {[%clk
0:00:14]} 55... e4 {[%clk 0:00:05]} 56. c6 {[%clk 0:00:12.1]} 56... Rc2 {[%clk
0:00:05.5]} 57. Kg1 {[%clk 0:00:10.4]} 57... Rc1+ {[%clk 0:00:05.3]} 58. Kg2
{[%clk 0:00:11]} 58... Rc2 {[%clk 0:00:06.2]} 59. Kf1 {[%clk 0:00:11.1]} 59...
Rc1+ {[%clk 0:00:06.2]} 60. Ke2 {[%clk 0:00:11.6]} 60... Rc2+ {[%clk 0:00:06.9]}
61. Ke3 {[%clk 0:00:11.4]} 61... Rc3+ {[%clk 0:00:06.7]} 62. Kd2 {[%clk
0:00:08.9]} 62... Rc5 {[%clk 0:00:04.9]} 63. c7 {[%clk 0:00:08.6]} 63... Rc6
{[%clk 0:00:03.8]} 64. h4 {[%clk 0:00:08.1]} 64... Rc4 {[%clk 0:00:03.6]} 65. h5
{[%clk 0:00:07.9]} 65... Rc6 {[%clk 0:00:03.6]} 66. h6 {[%clk 0:00:08.2]} 66...
Kg6 {[%clk 0:00:03.3]} 67. Rg8+ {[%clk 0:00:07.7]} 1-0

[Event "Early-Titled-Tuesday-Blitz-December-26-2023"]
[Site "Chess.com"]
[Date "2023.12.26"]
[Round "10"]
[White "margarita_2703"]
[Black "Aslanov_Umid"]
[Result "1-0"]
[WhiteElo "2363"]
[BlackElo "2536"]
[TimeControl "180+1"]
[EndTime "9:57:55 PST"]
[Termination "margarita_2703 won by checkmate"]

1. e4 {[%clk 0:02:45.7]} 1... c5 {[%clk 0:03:00.2]} 2. Nf3 {[%clk 0:02:30.9]}
2... d6 {[%clk 0:03:00.6]} 3. d4 {[%clk 0:02:26.9]} 3... cxd4 {[%clk 0:03:01.5]}
4. Qxd4 {[%clk 0:02:27.4]} 4... Nf6 {[%clk 0:03:01.4]} 5. Nc3 {[%clk 0:02:24.6]}
5... e6 {[%clk 0:02:56.7]} 6. Bg5 {[%clk 0:02:19.2]} 6... Be7 {[%clk 0:02:55.9]}
7. O-O-O {[%clk 0:02:18.2]} 7... Nc6 {[%clk 0:02:54.2]} 8. Bb5 {[%clk 0:02:18]}
8... O-O {[%clk 0:02:54.5]} 9. Qd3 {[%clk 0:02:17.2]} 9... Qa5 {[%clk
0:02:23.2]} 10. a3 {[%clk 0:02:07]} 10... a6 {[%clk 0:02:22.8]} 11. Bxc6 {[%clk
0:02:05.5]} 11... bxc6 {[%clk 0:02:23.7]} 12. Bd2 {[%clk 0:02:05.6]} 12... Qb6
{[%clk 0:02:20.1]} 13. Be3 {[%clk 0:02:04.5]} 13... Qb7 {[%clk 0:02:20]} 14. e5
{[%clk 0:02:03.9]} 14... Nd5 {[%clk 0:02:18.3]} 15. exd6 {[%clk 0:02:03.1]}
15... Bxd6 {[%clk 0:02:19.2]} 16. Ne4 {[%clk 0:01:57.1]} 16... Be7 {[%clk
0:02:19.5]} 17. Bc5 {[%clk 0:01:56.7]} 17... Rb8 {[%clk 0:02:17]} 18. b3 {[%clk
0:01:53.2]} 18... Bxc5 {[%clk 0:02:16.1]} 19. Nxc5 {[%clk 0:01:54.1]} 19... Qb5
{[%clk 0:02:16.6]} 20. Qxb5 {[%clk 0:01:53.1]} 20... axb5 {[%clk 0:02:17.5]} 21.
Kb2 {[%clk 0:01:51.8]} 21... b4 {[%clk 0:02:13.5]} 22. a4 {[%clk 0:01:51.9]}
22... Rd8 {[%clk 0:02:05.6]} 23. Ne5 {[%clk 0:01:50.5]} 23... Bb7 {[%clk
0:01:58.1]} 24. a5 {[%clk 0:01:44.1]} 24... Ba8 {[%clk 0:01:57.5]} 25. a6 {[%clk
0:01:41.7]} 25... Nc3 {[%clk 0:01:54.5]} 26. Rd7 {[%clk 0:01:37]} 26... Rdc8
{[%clk 0:01:21.2]} 27. Nc4 {[%clk 0:01:06.1]} 27... Nd5 {[%clk 0:01:12]} 28. Ra1
{[%clk 0:01:00.6]} 28... Rf8 {[%clk 0:01:10.3]} 29. Rb7 {[%clk 0:00:43.4]} 29...
Bxb7 {[%clk 0:00:52.8]} 30. axb7 {[%clk 0:00:44.3]} 30... Rfd8 {[%clk
0:00:52.6]} 31. Na5 {[%clk 0:00:43.4]} 31... Ne7 {[%clk 0:00:52.8]} 32. Na6
{[%clk 0:00:41.2]} 32... Kf8 {[%clk 0:00:51.6]} 33. Nxb8 {[%clk 0:00:41.3]}
33... Rxb8 {[%clk 0:00:52.5]} 34. Rd1 {[%clk 0:00:42.2]} 34... Ke8 {[%clk
0:00:52.3]} 35. c4 {[%clk 0:00:38.8]} 35... bxc3+ {[%clk 0:00:52.2]} 36. Kxc3
{[%clk 0:00:39.7]} 36... Nd5+ {[%clk 0:00:51.5]} 37. Kc4 {[%clk 0:00:36.8]}
37... Kd7 {[%clk 0:00:52.1]} 38. Kc5 {[%clk 0:00:35.5]} 38... Kc7 {[%clk
0:00:52.5]} 39. b4 {[%clk 0:00:34.2]} 39... Nc3 {[%clk 0:00:49.4]} 40. Rd4
{[%clk 0:00:26.6]} 40... Na4+ {[%clk 0:00:46]} 41. Kc4 {[%clk 0:00:26.7]} 41...
Nb6+ {[%clk 0:00:46.9]} 42. Kb3 {[%clk 0:00:26.7]} 42... Nd5 {[%clk 0:00:47.1]}
43. Rh4 {[%clk 0:00:24.5]} 43... h6 {[%clk 0:00:46]} 44. Rg4 {[%clk 0:00:23.5]}
44... g5 {[%clk 0:00:45.6]} 45. h4 {[%clk 0:00:23.5]} 45... f5 {[%clk
0:00:45.1]} 46. Rc4 {[%clk 0:00:23.7]} 46... g4 {[%clk 0:00:44.6]} 47. Rxc6+
{[%clk 0:00:23.2]} 47... Kd7 {[%clk 0:00:42.1]} 48. Rc5 {[%clk 0:00:23.3]} 48...
Ne7 {[%clk 0:00:38.8]} 49. Ka4 {[%clk 0:00:22]} 49... Kd6 {[%clk 0:00:37.3]} 50.
Kb5 {[%clk 0:00:21.7]} 50... Nd5 {[%clk 0:00:34.4]} 51. Rxd5+ {[%clk 0:00:20.4]}
51... exd5 {[%clk 0:00:32.4]} 52. Kb6 {[%clk 0:00:21.3]} 52... d4 {[%clk
0:00:33.1]} 53. Ka7 {[%clk 0:00:16.8]} 53... Rxb7+ {[%clk 0:00:25.2]} 54. Nxb7+
{[%clk 0:00:17.7]} 54... Kd5 {[%clk 0:00:26.1]} 55. Nc5 {[%clk 0:00:07.4]} 55...
Kc4 {[%clk 0:00:26.5]} 56. Kb6 {[%clk 0:00:07.3]} 56... Kxb4 {[%clk 0:00:26.7]}
57. Kc6 {[%clk 0:00:06.8]} 57... Kc4 {[%clk 0:00:23.2]} 58. Kd6 {[%clk
0:00:06.9]} 58... f4 {[%clk 0:00:23.9]} 59. Ne4 {[%clk 0:00:04.8]} 59... g3
{[%clk 0:00:16.1]} 60. fxg3 {[%clk 0:00:04.4]} 60... Kd3 {[%clk 0:00:16.8]} 61.
Ke5 {[%clk 0:00:05.3]} 61... fxg3 {[%clk 0:00:16.9]} 62. Kf4 {[%clk 0:00:05.3]}
62... Ke2 {[%clk 0:00:16.9]} 63. Kxg3 {[%clk 0:00:04.3]} 63... Ke3 {[%clk
0:00:17.6]} 64. Nf2 {[%clk 0:00:04.6]} 64... h5 {[%clk 0:00:17.1]} 65. Nd1+
{[%clk 0:00:03.7]} 65... Kd2 {[%clk 0:00:17.2]} 66. Nf2 {[%clk 0:00:04.6]} 66...
Ke3 {[%clk 0:00:17.9]} 67. Nh3 {[%clk 0:00:04.8]} 67... d3 {[%clk 0:00:17.9]}
68. Nf2 {[%clk 0:00:05.7]} 68... d2 {[%clk 0:00:18.6]} 69. Nd1+ {[%clk
0:00:05.7]} 69... Ke2 {[%clk 0:00:18.1]} 70. Nb2 {[%clk 0:00:06.6]} 70... Ke3
{[%clk 0:00:18.3]} 71. Kh3 {[%clk 0:00:06.4]} 71... Kf2 {[%clk 0:00:18.2]} 72.
g4 {[%clk 0:00:06.6]} 72... hxg4+ {[%clk 0:00:18.6]} 73. Kxg4 {[%clk 0:00:07.5]}
73... Ke3 {[%clk 0:00:19.5]} 74. h5 {[%clk 0:00:07.8]} 74... Kd4 {[%clk
0:00:20.4]} 75. h6 {[%clk 0:00:08.2]} 75... Kc3 {[%clk 0:00:21.2]} 76. Nd1+
{[%clk 0:00:08.9]} 76... Kc2 {[%clk 0:00:22]} 77. Nf2 {[%clk 0:00:09.6]} 77...
d1=Q+ {[%clk 0:00:22.1]} 78. Nxd1 {[%clk 0:00:10]} 78... Kxd1 {[%clk 0:00:22.9]}
79. h7 {[%clk 0:00:10.9]} 79... Kd2 {[%clk 0:00:23.8]} 80. h8=Q {[%clk
0:00:11.8]} 80... Kd3 {[%clk 0:00:24.7]} 81. Kg5 {[%clk 0:00:12.6]} 81... Kc4
{[%clk 0:00:25.6]} 82. Kg6 {[%clk 0:00:13.5]} 82... Kc5 {[%clk 0:00:26.5]} 83.
Kg7 {[%clk 0:00:14.4]} 83... Kc6 {[%clk 0:00:27.4]} 84. Kg8 {[%clk 0:00:15.2]}
84... Kd7 {[%clk 0:00:28.3]} 85. Qh7+ {[%clk 0:00:16.1]} 85... Ke6 {[%clk
0:00:28.8]} 86. Qg7 {[%clk 0:00:17]} 86... Kf5 {[%clk 0:00:29.7]} 87. Qf7+
{[%clk 0:00:17.9]} 87... Kg5 {[%clk 0:00:30.1]} 88. Kf8 {[%clk 0:00:18.8]} 88...
Kh6 {[%clk 0:00:31]} 89. Ke8 {[%clk 0:00:19.7]} 89... Kg5 {[%clk 0:00:31.3]} 90.
Ke7 {[%clk 0:00:20.6]} 90... Kh6 {[%clk 0:00:32.2]} 91. Ke6 {[%clk 0:00:21.3]}
91... Kg5 {[%clk 0:00:33.1]} 92. Ke5 {[%clk 0:00:21.8]} 92... Kh6 {[%clk
0:00:34]} 93. Qg8 {[%clk 0:00:21.8]} 93... Kh5 {[%clk 0:00:34]} 94. Kf5 {[%clk
0:00:22.7]} 94... Kh6 {[%clk 0:00:34.4]} 95. Qg6# {[%clk 0:00:23]} 1-0

[Event "Early-Titled-Tuesday-Blitz-December-26-2023"]
[Site "Chess.com"]
[Date "2023.12.26"]
[Round "11"]
[White "JAN2404"]
[Black "GM-2023"]
[Result "1-0"]
[WhiteElo "1945"]
[BlackElo "1815"]
[TimeControl "180+1"]
[EndTime "10:02:34 PST"]
[Termination "JAN2404 won by checkmate"]

1. e4 {[%clk 0:02:58.4]} 1... e5 {[%clk 0:02:59.6]} 2. Nf3 {[%clk 0:02:57.8]}
2... Nc6 {[%clk 0:03:00.5]} 3. Bc4 {[%clk 0:02:57.8]} 3... Bc5 {[%clk
0:03:00.8]} 4. O-O {[%clk 0:02:57.7]} 4... Nf6 {[%clk 0:03:01.7]} 5. Re1 {[%clk
0:02:55.6]} 5... O-O {[%clk 0:03:02.3]} 6. h3 {[%clk 0:02:55.6]} 6... d5 {[%clk
0:03:03.1]} 7. exd5 {[%clk 0:02:53.7]} 7... Nxd5 {[%clk 0:03:04]} 8. Nxe5 {[%clk
0:02:49.9]} 8... Nxe5 {[%clk 0:03:03.7]} 9. Rxe5 {[%clk 0:02:48.7]} 9... Nf6
{[%clk 0:03:02.7]} 10. Qe1 {[%clk 0:02:36.6]} 10... Qd4 {[%clk 0:02:57.9]} 11.
c3 {[%clk 0:02:31.1]} 11... Qxc4 {[%clk 0:02:54.3]} 12. d4 {[%clk 0:02:27.3]}
12... Bd6 {[%clk 0:02:50.9]} 13. Nd2 {[%clk 0:02:20.8]} 13... Qa6 {[%clk
0:02:45]} 14. Re2 {[%clk 0:02:18.8]} 14... Be6 {[%clk 0:02:42.9]} 15. b3 {[%clk
0:02:16.9]} 15... Rfe8 {[%clk 0:02:41.6]} 16. c4 {[%clk 0:02:14.5]} 16... Bd7
{[%clk 0:02:37.8]} 17. Bb2 {[%clk 0:02:05.3]} 17... Rxe2 {[%clk 0:02:36.4]} 18.
Qxe2 {[%clk 0:02:05.7]} 18... Re8 {[%clk 0:02:35.4]} 19. Qd3 {[%clk 0:02:06.1]}
19... g6 {[%clk 0:02:30.2]} 20. Nf3 {[%clk 0:02:04]} 20... Bf5 {[%clk
0:02:29.5]} 21. Qc3 {[%clk 0:02:03.6]} 21... Ne4 {[%clk 0:02:27.4]} 22. Qc1
{[%clk 0:02:02]} 22... c5 {[%clk 0:02:17.7]} 23. Qh6 {[%clk 0:01:54.7]} 23...
Nf6 {[%clk 0:02:06.7]} 24. dxc5 {[%clk 0:01:52.8]} 24... Be7 {[%clk 0:02:05.5]}
25. Ng5 {[%clk 0:01:50.4]} 25... Bxc5 {[%clk 0:01:51.6]} 26. Rd1 {[%clk
0:01:41]} 26... Qb6 {[%clk 0:01:41.4]} 27. Kf1 {[%clk 0:01:24.7]} 27... Bxf2
{[%clk 0:01:39.3]} 28. Nxh7 {[%clk 0:01:15.9]} 28... Nxh7 {[%clk 0:01:37.5]} 29.
Qg7# {[%clk 0:01:15.9]} 1-0

[Event "Early-Titled-Tuesday-Blitz-December-26-2023"]
[Site "Chess.com"]
[Date "2023.12.26"]
[Round "11"]
[White "Flawless_Fighter"]
[Black "bazar-wokzal"]
[Result "0-1"]
[WhiteElo "2773"]
[BlackElo "2659"]
[TimeControl "180+1"]
[EndTime "10:03:04 PST"]
[Termination "bazar-wokzal won by resignation"]

1. e4 {[%clk 0:03:00.9]} 1... Nc6 {[%clk 0:02:58.5]} 2. Nf3 {[%clk 0:03:00.4]}
2... d5 {[%clk 0:02:58.8]} 3. exd5 {[%clk 0:02:57.9]} 3... Qxd5 {[%clk
0:02:59.7]} 4. Nc3 {[%clk 0:02:58.6]} 4... Qa5 {[%clk 0:02:59.7]} 5. d4 {[%clk
0:02:33.2]} 5... Bg4 {[%clk 0:02:59.7]} 6. h3 {[%clk 0:02:22.9]} 6... Bxf3
{[%clk 0:02:59.3]} 7. Qxf3 {[%clk 0:02:22.8]} 7... O-O-O {[%clk 0:02:59.5]} 8.
Be3 {[%clk 0:01:58.7]} 8... e5 {[%clk 0:02:58.4]} 9. d5 {[%clk 0:01:39.9]} 9...
Ba3 {[%clk 0:02:55.6]} 10. Rb1 {[%clk 0:01:28.4]} 10... Bxb2 {[%clk 0:02:52.5]}
11. Bd2 {[%clk 0:01:20.4]} 11... Bxc3 {[%clk 0:02:51.9]} 12. Bxc3 {[%clk
0:01:18.2]} 12... Qxd5 {[%clk 0:02:52]} 13. Qxd5 {[%clk 0:01:14.5]} 13... Rxd5
{[%clk 0:02:52.8]} 14. Bd3 {[%clk 0:01:10.3]} 14... Nf6 {[%clk 0:02:52.4]} 15.
O-O {[%clk 0:01:09.8]} 15... Rhd8 {[%clk 0:02:49.9]} 16. Rfe1 {[%clk 0:01:04.6]}
16... Rc5 {[%clk 0:02:42.7]} 17. Bd2 {[%clk 0:00:53.8]} 17... e4 {[%clk
0:02:40.9]} 18. Be3 {[%clk 0:00:54.2]} 18... Rc3 {[%clk 0:02:32.8]} 19. Bd2
{[%clk 0:00:49.5]} 19... Ra3 {[%clk 0:02:28.9]} 20. Bc1 {[%clk 0:00:44.9]} 20...
Rxa2 {[%clk 0:02:25.9]} 21. Bc4 {[%clk 0:00:34.1]} 21... Rxc2 {[%clk 0:02:21.6]}
22. Bxf7 {[%clk 0:00:34.2]} 22... Nd4 {[%clk 0:02:14.8]} 23. Be3 {[%clk
0:00:30]} 23... a5 {[%clk 0:02:07.7]} 24. g4 {[%clk 0:00:27.4]} 24... Nf3+
{[%clk 0:02:06.6]} 25. Kg2 {[%clk 0:00:25.1]} 25... Nxe1+ {[%clk 0:02:06.5]} 26.
Rxe1 {[%clk 0:00:26]} 26... a4 {[%clk 0:01:59.2]} 27. Ba7 {[%clk 0:00:24.6]}
27... b6 {[%clk 0:01:56.7]} 0-1

[Event "Early-Titled-Tuesday-Blitz-December-26-2023"]
[Site "Chess.com"]
[Date "2023.12.26"]
[Round "11"]
[White "CuattroPrincesses"]
[Black "Hoshka"]
[Result "1-0"]
[WhiteElo "2292"]
[BlackElo "2055"]
[TimeControl "180+1"]
[EndTime "10:03:08 PST"]
[Termination "CuattroPrincesses won by resignation"]

1. e4 {[%clk 0:03:00.9]} 1... e5 {[%clk 0:02:59.4]} 2. d4 {[%clk 0:03:01.8]}
2... exd4 {[%clk 0:02:58.5]} 3. Nf3 {[%clk 0:03:00.7]} 3... Nc6 {[%clk
0:02:58.2]} 4. Nxd4 {[%clk 0:03:00.4]} 4... Nf6 {[%clk 0:02:57.2]} 5. Nc3 {[%clk
0:03:00.2]} 5... Bb4 {[%clk 0:02:56.5]} 6. Nxc6 {[%clk 0:03:00.1]} 6... bxc6
{[%clk 0:02:56.4]} 7. Bd3 {[%clk 0:03:00.7]} 7... d5 {[%clk 0:02:56.7]} 8. exd5
{[%clk 0:02:59.6]} 8... cxd5 {[%clk 0:02:57.2]} 9. O-O {[%clk 0:03:00.1]} 9...
O-O {[%clk 0:02:56.9]} 10. Bg5 {[%clk 0:03:00.8]} 10... c6 {[%clk 0:02:57]} 11.
Na4 {[%clk 0:03:01.5]} 11... h6 {[%clk 0:02:45.9]} 12. Bh4 {[%clk 0:03:00.6]}
12... Bd6 {[%clk 0:02:43]} 13. c4 {[%clk 0:02:59.8]} 13... Re8 {[%clk
0:02:29.9]} 14. Rc1 {[%clk 0:02:58.8]} 14... Bg4 {[%clk 0:02:18.9]} 15. Bxf6
{[%clk 0:02:38.8]} 15... Bxd1 {[%clk 0:02:18.3]} 16. Bxd8 {[%clk 0:02:38.8]}
16... Bxa4 {[%clk 0:02:17.1]} 17. Ba5 {[%clk 0:02:36.9]} 17... dxc4 {[%clk
0:02:10.9]} 18. Bxc4 {[%clk 0:02:27.8]} 18... Bb5 {[%clk 0:02:11.6]} 19. b3
{[%clk 0:02:09.8]} 19... Bf4 {[%clk 0:02:05.3]} 20. Rc2 {[%clk 0:02:08.3]} 20...
Re6 {[%clk 0:01:53.5]} 21. Bxe6 {[%clk 0:02:04.8]} 21... Bxf1 {[%clk 0:01:47.4]}
22. Kxf1 {[%clk 0:01:46.4]} 22... fxe6 {[%clk 0:01:45.2]} 23. Rxc6 {[%clk
0:01:46.5]} 23... Kf7 {[%clk 0:01:43.7]} 24. Ra6 {[%clk 0:01:44.1]} 24... Kf6
{[%clk 0:01:19.4]} 25. Bb6 {[%clk 0:01:37.8]} 25... Rc8 {[%clk 0:01:17]} 26.
Bxa7 {[%clk 0:01:32.6]} 26... Rc1+ {[%clk 0:01:04.5]} 27. Ke2 {[%clk 0:01:32]}
27... Rc2+ {[%clk 0:01:05.4]} 28. Kf3 {[%clk 0:01:32.3]} 28... Bxh2 {[%clk
0:01:03.9]} 29. g3 {[%clk 0:01:31.4]} 29... Bg1 {[%clk 0:01:03.2]} 30. Kg2
{[%clk 0:01:30]} 1-0

[Event "Early-Titled-Tuesday-Blitz-December-26-2023"]
[Site "Chess.com"]
[Date "2023.12.26"]
[Round "11"]
[White "viktorskliarov"]
[Black "YurasovMat-2012"]
[Result "1-0"]
[WhiteElo "2667"]
[BlackElo "2542"]
[TimeControl "180+1"]
[EndTime "10:03:14 PST"]
[Termination "viktorskliarov won by resignation"]

1. e4 {[%clk 0:03:00.9]} 1... e5 {[%clk 0:02:59.1]} 2. Nc3 {[%clk 0:03:00.7]}
2... Nf6 {[%clk 0:02:55.9]} 3. Bc4 {[%clk 0:03:00.6]} 3... Nxe4 {[%clk 0:02:54]}
4. Qh5 {[%clk 0:02:59.9]} 4... Nd6 {[%clk 0:02:51.1]} 5. Bb3 {[%clk 0:03:00.3]}
5... Be7 {[%clk 0:02:43.5]} 6. Qxe5 {[%clk 0:02:58.5]} 6... O-O {[%clk
0:02:41.7]} 7. d4 {[%clk 0:02:53.5]} 7... Nc6 {[%clk 0:02:39.6]} 8. Qf4 {[%clk
0:02:52.6]} 8... Na5 {[%clk 0:02:33.6]} 9. Bd5 {[%clk 0:02:48.2]} 9... Bf6
{[%clk 0:02:29.1]} 10. Nge2 {[%clk 0:02:44.7]} 10... Re8 {[%clk 0:02:25.5]} 11.
h4 {[%clk 0:02:36.5]} 11... Nc6 {[%clk 0:02:24.5]} 12. Be3 {[%clk 0:02:33.6]}
12... b6 {[%clk 0:02:17.8]} 13. O-O-O {[%clk 0:02:19.4]} 13... Bb7 {[%clk
0:02:17.7]} 14. g4 {[%clk 0:02:18.6]} 14... g6 {[%clk 0:01:29.1]} 15. g5 {[%clk
0:02:01]} 15... Bg7 {[%clk 0:01:28.9]} 16. Ng3 {[%clk 0:02:01.2]} 16... Ne7
{[%clk 0:01:26.5]} 17. Bxb7 {[%clk 0:01:56.9]} 17... Nxb7 {[%clk 0:01:27]} 18.
h5 {[%clk 0:01:56.5]} 18... d5 {[%clk 0:01:25.6]} 19. hxg6 {[%clk 0:01:19.3]}
19... hxg6 {[%clk 0:01:24.1]} 20. Rh7 {[%clk 0:00:56.7]} 20... Kxh7 {[%clk
0:01:20.3]} 21. Qxf7 {[%clk 0:00:55.3]} 1-0

[Event "Early-Titled-Tuesday-Blitz-December-26-2023"]
[Site "Chess.com"]
[Date "2023.12.26"]
[Round "11"]
[White "Felix-Rose"]
[Black "hsd2016"]
[Result "0-1"]
[WhiteElo "2230"]
[BlackElo "2245"]
[TimeControl "180+1"]
[EndTime "10:03:28 PST"]
[Termination "hsd2016 won by checkmate"]

1. d4 {[%clk 0:03:00.2]} 1... d5 {[%clk 0:02:59.8]} 2. Bf4 {[%clk 0:02:59]} 2...
c5 {[%clk 0:02:59.3]} 3. e3 {[%clk 0:02:54.8]} 3... cxd4 {[%clk 0:02:56.2]} 4.
exd4 {[%clk 0:02:55.1]} 4... Nf6 {[%clk 0:02:56.6]} 5. Nf3 {[%clk 0:02:50.9]}
5... Nc6 {[%clk 0:02:56.2]} 6. Nbd2 {[%clk 0:02:48.5]} 6... e6 {[%clk
0:02:55.5]} 7. Bb5 {[%clk 0:02:48]} 7... Bd7 {[%clk 0:02:54]} 8. c4 {[%clk
0:02:46.7]} 8... dxc4 {[%clk 0:02:53.4]} 9. Qa4 {[%clk 0:02:46.4]} 9... Nd5
{[%clk 0:02:52]} 10. Bg5 {[%clk 0:02:39.4]} 10... f6 {[%clk 0:02:48.1]} 11. Bh4
{[%clk 0:02:37.8]} 11... c3 {[%clk 0:02:47.8]} 12. Nc4 {[%clk 0:02:19.7]} 12...
cxb2 {[%clk 0:02:46.7]} 13. Nxb2 {[%clk 0:02:17.5]} 13... Nc3 {[%clk 0:02:46.8]}
14. Qb3 {[%clk 0:02:17.5]} 14... Nxb5 {[%clk 0:02:46.8]} 15. Qxb5 {[%clk
0:02:17.9]} 15... Nxd4 {[%clk 0:02:41.4]} 16. Qxb7 {[%clk 0:02:18.1]} 16... Rb8
{[%clk 0:02:34]} 17. Qxa7 {[%clk 0:02:02.7]} 17... Nxf3+ {[%clk 0:02:32.4]} 18.
gxf3 {[%clk 0:02:03.1]} 18... Rxb2 {[%clk 0:02:30.4]} 19. O-O {[%clk 0:02:02.6]}
19... Qb6 {[%clk 0:02:26.4]} 20. Qa8+ {[%clk 0:01:54.8]} 20... Qb8 {[%clk
0:02:26.5]} 21. Qe4 {[%clk 0:01:53.5]} 21... Rb4 {[%clk 0:02:26.4]} 22. Qd3
{[%clk 0:01:48.3]} 22... Rxh4 {[%clk 0:02:25.7]} 23. Rfd1 {[%clk 0:01:47.5]}
23... Qxh2+ {[%clk 0:02:15.6]} 24. Kf1 {[%clk 0:01:47.6]} 24... Qh3+ {[%clk
0:02:15.9]} 25. Ke2 {[%clk 0:01:45.9]} 25... e5 {[%clk 0:02:16.4]} 26. Rab1
{[%clk 0:01:36.5]} 26... Rd4 {[%clk 0:02:08.8]} 27. Rb8+ {[%clk 0:01:34.6]}
27... Kf7 {[%clk 0:02:07.1]} 28. Qb3+ {[%clk 0:01:31]} 28... Kg6 {[%clk
0:02:05.6]} 29. Rg1+ {[%clk 0:01:23.3]} 29... Kh6 {[%clk 0:01:52.4]} 30. Qe3+
{[%clk 0:01:20.2]} 30... g5 {[%clk 0:01:52.5]} 31. Rbb1 {[%clk 0:01:08.9]} 31...
Bc5 {[%clk 0:01:28.9]} 32. Rh1 {[%clk 0:01:05.8]} 32... Bb5+ {[%clk 0:01:28.2]}
33. Rxb5 {[%clk 0:01:00.9]} 33... Qxh1 {[%clk 0:01:26.8]} 34. Rxc5 {[%clk
0:00:55]} 34... Qd1# {[%clk 0:01:24.5]} 0-1